fUSD/lending_fUSD_20240725
["ID","MTS","AMOUNT","RATE_DAILY","PERIOD"]
[333105786,1721869850953,-564.72,0.00010958,2]
[333105787,1721869850963,-500.0,0.00010958,2]
[333105788,1721869850972,-564.72,0.00010958,2]
[333105789,1721869850982,-500.0,0.00010958,2]
[333105790,1721869850992,-500.0,0.00010958,2]
[333105791,1721869851002,-564.72,0.00010958,2]
[333105792,1721869851013,-500.0,0.00010958,2]
[333105793,1721869851024,-500.0,0.00010958,2]
[333105794,1721869851034,-500.0,0.00010958,2]
[333105795,1721869851044,-500.0,0.00010958,2]
[333105796,1721869851053,-500.0,0.00010958,2]
[333105797,1721869851065,-500.0,0.00010958,2]
[333105798,1721869851078,-500.0,0.00010958,2]
[333105799,1721869851088,-500.0,0.00010958,2]
[333105800,1721869851098,-500.0,0.00010958,2]
[333105801,1721869851109,-500.0,0.00010958,2]
[333105802,1721869851119,-500.0,0.00010958,2]
[333105803,1721869851128,-131.05996764,0.00010958,2]
[333105804,1721869851141,-368.94003236,0.00010958,2]
[333105805,1721869851151,-1603.69371623,0.00010958,2]
[333105806,1721869851162,-325.40628377,0.00010958,2]
[333105807,1721869851172,-1791.42964461,0.00010958,2]
[333105808,1721869851184,-137.67035539,0.00010958,2]
[333105809,1721869851194,-1075.20915389,0.00010958,2]
[333105810,1721869851212,-649.62967035,0.000109,2]
[333105811,1721869851225,-592.03516194,0.000109,2]
[333105812,1721869851236,-853.89084611,0.00010958,2]
[333105813,1721869851247,-56.83877928,0.00010958,2]
[333105814,1721869851518,-443.16122072,0.00010958,2]
[333105815,1721869851527,-1929.1,0.00010958,2]
[333105816,1721869851537,-500.0,0.00010958,2]
[333105817,1721869851547,-500.0,0.00010958,2]
[333105818,1721869851556,-500.0,0.00010958,2]
[333105819,1721869851569,-500.0,0.00010958,2]
[333105820,1721869851578,-500.0,0.00010958,2]
[333105821,1721869851588,-500.0,0.00010958,2]
[333105822,1721869851597,-276.13861753,0.00010958,2]
[333105823,1721869851607,-10866.60016185,0.00010958,2]
[333105824,1721869851619,-464.5415775,0.00010958,2]
[333105825,1721869851631,-1576.73213247,0.00010958,2]
[333105826,1721869851642,-6925.67894862,0.00010958,2]
[333105827,1721869851657,-1014.5625,0.00010958,2]
[333105828,1721869851669,-1082.04073439,0.00010958,2]
[333105829,1721869851680,-351.89008351,0.00010958,2]
[333105830,1721869851692,-3332.00331739,0.00010958,2]
[333105831,1721869851703,-836.40000001,0.00010958,2]
[333105832,1721870057971,158.39,8.219e-05,2]
[333105833,1721870597380,4091.13216543,5.781e-05,7]
[333105834,1721870692070,158.81,8.219e-05,2]
[333105891,1721871034176,-3476.12861861,9.515e-05,2]
[333105892,1721871034187,-1178.51138139,9.515e-05,2]
[333105893,1721871034199,-1852.42,9.534e-05,2]
[333105894,1721871034209,-349.21,9.534e-05,2]
[333105895,1721871034224,-173.15774171,9.539e-05,2]
[333105896,1721871034236,-672.4,9.549e-05,2]
[333105897,1721871034247,-300.0,9.554e-05,2]
[333105898,1721871034257,-250.0,9.559e-05,2]
[333105899,1721871034267,-500.0,9.568e-05,2]
[333105900,1721871034277,-1368.43,9.575e-05,2]
[333105901,1721871034287,-6343.111751,9.585e-05,2]
[333105902,1721871034299,-17556.888249,9.585e-05,2]
[333105903,1721871034310,-309.0,9.613e-05,2]
[333105904,1721871034320,-200.0,9.62e-05,2]
[333105905,1721871034330,-1955.44,9.67e-05,2]
[333105906,1721871034340,-150.99,9.67e-05,2]
[333105907,1721871034349,-1000.0,9.787e-05,2]
[333105908,1721871034359,-150.0,9.795e-05,2]
[333105909,1721871034369,-2631.03,9.796e-05,2]
[333105910,1721871034379,-6819.46,9.796e-05,2]
[333105911,1721871034389,-499.99,9.796e-05,2]
[333105912,1721871034399,-150.99,9.796e-05,2]
[333105913,1721871034409,-168.7,9.838e-05,2]
[333105914,1721871034419,-200.0,9.875e-05,2]
[333105915,1721871034429,-7928.0,9.88e-05,2]
[333105916,1721871034438,-150.0,9.888e-05,2]
[333105917,1721871034448,-150.0,9.888e-05,2]
[333105918,1721871034458,-175.788255,9.888e-05,2]
[333105919,1721871034469,-166.38834139,9.888e-05,2]
[333105920,1721871034486,-150.0,9.888e-05,2]
[333105921,1721871034496,-271.72089562,9.888e-05,2]
[333105922,1721871034506,-187.88952934,9.888e-05,2]
[333105923,1721871034516,-151.89084327,9.888e-05,2]
[333105924,1721871034527,-183.55966854,9.888e-05,2]
[333105925,1721871034536,-162.83555025,9.888e-05,2]
[333105926,1721871034546,-161.57235309,9.888e-05,2]
[333105927,1721871034555,-152.2236809,9.888e-05,2]
[333105928,1721871034565,-239.46513035,9.888e-05,2]
[333105929,1721871034575,-477.9870172,9.962e-05,2]
[333105930,1721871034585,-306.32793202,9.962e-05,2]
[333105931,1721871034594,-203.17583794,9.962e-05,2]
[333105932,1721871034604,-355.05159033,9.962e-05,2]
[333105933,1721871034614,-1034.01694989,0.0001,2]
[333105934,1721871034624,-25610.31845805,0.0001,2]
[333105935,1721871034634,-212.88674161,0.0001,2]
[333105936,1721871034644,-150.0,0.00010045,2]
[333105937,1721871034654,-636.22,0.00010055,2]
[333105938,1721871034665,-164.44,0.00010192,2]
[333105939,1721871034676,-150.0,0.00010192,2]
[333105940,1721871034686,-424.74,0.00010192,2]
[333105941,1721871034696,-150.0,0.00010202,2]
[333105942,1721871034706,-150.0,0.00010254,2]
[333105943,1721871034716,-150.0,0.00010278,2]
[333105944,1721871034735,-150.0,0.00010278,2]
[333105945,1721871034746,-334.98,0.00010278,2]
[333105946,1721871034756,-150.0,0.00010278,2]
[333105947,1721871034767,-529.84,0.00010278,2]
[333105948,1721871034777,-150.0,0.00010278,2]
[333105949,1721871034787,-165.32,0.00010278,2]
[333105950,1721871034797,-161.48,0.00010278,2]
[333105951,1721871034807,-711.5,0.00010278,2]
[333105952,1721871034818,-425.54,0.00010278,2]
[333105953,1721871034828,-150.0,0.00010278,2]
[333105954,1721871034838,-150.0,0.00010278,2]
[333105955,1721871034848,-150.0,0.00010278,2]
[333105956,1721871034858,-150.0,0.00010278,2]
[333105957,1721871034868,-425.54,0.00010278,2]
[333105958,1721871034878,-165.32,0.00010278,2]
[333105959,1721871034888,-150.0,0.00010278,2]
[333105960,1721871034897,-150.0,0.00010278,2]
[333105961,1721871034907,-425.54,0.00010278,2]
[333105962,1721871034917,-150.0,0.00010278,2]
[333105963,1721871034927,-150.0,0.00010278,2]
[333105964,1721871034936,-150.0,0.00010278,2]
[333105965,1721871034946,-150.0,0.00010278,2]
[333105966,1721871034956,-165.32,0.00010278,2]
[333105967,1721871034966,-150.0,0.00010278,2]
[333105968,1721871034981,-150.0,0.00010278,2]
[333105969,1721871034991,-150.0,0.00010278,2]
[333105970,1721871035000,-425.54,0.00010278,2]
[333105971,1721871035009,-150.0,0.00010278,2]
[333105972,1721871035019,-425.54,0.00010278,2]
[333105973,1721871035030,-150.0,0.00010278,2]
[333105974,1721871035040,-150.0,0.00010278,2]
[333105975,1721871035050,-150.0,0.00010278,2]
[333105976,1721871035059,-425.54,0.00010278,2]
[333105977,1721871035245,-425.54,0.00010278,2]
[333105978,1721871035269,-2999.99999999,0.00010283,2]
[333105979,1721871035279,-2053.16684125,0.00010283,2]
[333105980,1721871035289,-150.0,0.00010359,2]
[333105981,1721871035299,-150.0,0.00010437,2]
[333105982,1721871035309,-158.11077275,0.00010467,2]
[333105983,1721871035319,-420.0,0.00010509,2]
[333105984,1721871035328,-150.0,0.00010515,2]
[333105985,1721871035338,-219.6763,0.00010599,2]
[333105986,1721871035348,-195.2737,0.00010599,2]
[333105987,1721871035358,-150.0,0.0001062,2]
[333105988,1721871035368,-150.0,0.00010672,2]
[333105989,1721871035378,-1000.0,0.00010699,2]
[333105990,1721871035388,-150.0,0.00010735,2]
[333105991,1721871035398,-164.09492693,0.00010741,2]
[333105992,1721871035408,-1500.0,0.00010748,2]
[333105993,1721871035417,-283.77192452,0.00010753,2]
[333105994,1721871035426,-150.0,0.00010762,2]
[333105995,1721871035436,-255.0,0.00010775,2]
[333105996,1721871035446,-150.0,0.00010779,2]
[333105997,1721871035456,-150.0,0.0001079,2]
[333105998,1721871035467,-6614.6024,0.00010796,2]
[333105999,1721871035482,-163.5862,0.00010796,2]
[333106000,1721871035492,-1100.10359313,0.00010797,2]
[333106001,1721871035502,-150.0,0.00010802,2]
[333106002,1721871035512,-150.0,0.00010808,2]
[333106003,1721871035521,-150.0,0.00010813,2]
[333106004,1721871035531,-150.0,0.00010829,2]
[333106005,1721871035540,-150.0,0.00010832,2]
[333106006,1721871035550,-150.0,0.00010849,2]
[333106007,1721871035559,-220.51,0.00010849,2]
[333106008,1721871035569,-3283.0,0.00010852,2]
[333106009,1721871035579,-150.0,0.00010852,2]
[333106010,1721871035589,-1994.0,0.00010852,2]
[333106011,1721871035599,-516.917,0.00010852,2]
[333106012,1721871035608,-1605.323,0.00010852,2]
[333106013,1721871035618,-150.73,0.00010852,2]
[333106014,1721871035627,-2389.353,0.00010852,2]
[333106015,1721871035636,-150.0,0.00010853,2]
[333106016,1721871035646,-150.0,0.00010854,2]
[333106017,1721871035656,-150.0,0.00010854,2]
[333106018,1721871035666,-150.0,0.00010856,2]
[333106019,1721871035676,-179.80965226,0.00010858,2]
[333106020,1721871035686,-294.6914,0.00010858,2]
[333106021,1721871035696,-6406.3984,0.00010858,2]
[333106022,1721871035706,-302.9248,0.00010858,2]
[333106023,1721871035716,-1000.0,0.00010858,2]
[333106024,1721871035731,-5453.9538,0.00010858,2]
[333106025,1721871035741,-150.0,0.00010861,2]
[333106026,1721871035751,-150.0,0.00010865,2]
[333106027,1721871035760,-150.0,0.00010876,2]
[333106028,1721871035770,-10844.72885209,0.0001088,2]
[333106029,1721871035779,-31830.42118957,0.0001088,2]
[333106030,1721871035788,-100000.0,0.00010896,2]
[333106031,1721871035798,-17029.83858537,0.00010897,2]
[333106032,1721871035808,-169.24846796,0.00010899,2]
[333106033,1721871035817,-522.43219131,0.000109,2]
[333106034,1721871035827,-158.82820241,0.000109,2]
[333106035,1721871035836,-150.0,0.00010902,2]
[333106036,1721871035846,-150.0,0.00010923,2]
[333106037,1721871035855,-224695.22560847,0.0001094,2]
[333106038,1721871035865,-151.0,0.0001094,2]
[333106039,1721871035874,-150.0,0.00010951,2]
[333106040,1721871035883,-150.0,0.00010952,2]
[333106041,1721871035892,-1668.15923975,0.00010955,2]
[333106042,1721871035903,-4126.37614728,0.00010957,2]
[333106043,1721871035912,-459.64358093,0.00010958,2]
[333106044,1721871035921,-1049.01515788,0.00010958,2]
[333106045,1721871035930,-501.72512871,0.00010958,2]
[333106046,1721871035940,-501.52677362,0.00010958,2]
[333106047,1721871035949,-308.05152365,0.00010958,2]
[333106048,1721871035959,-593.80531974,0.00010958,2]
[333106049,1721871035968,-501.72136378,0.00010958,2]
[333106050,1721871035983,-166.31344958,0.00010958,2]
[333106051,1721871035993,-501.59923823,0.00010958,2]
[333106052,1721871036002,-501.55996204,0.00010958,2]
[333106053,1721871036011,-500.0,0.00010958,2]
[333106054,1721871036021,-501.07266311,0.00010958,2]
[333106055,1721871036030,-321.28562365,0.00010958,2]
[333106056,1721871036039,-500.0,0.00010958,2]
[333106057,1721871036048,-500.0,0.00010958,2]
[333106058,1721871036058,-500.0,0.00010958,2]
[333106059,1721871036067,-504.5871264,0.00010958,2]
[333106060,1721871036076,-503.066964,0.00010958,2]
[333106061,1721871036086,-500.0,0.00010958,2]
[333106062,1721871036095,-500.0,0.00010958,2]
[333106063,1721871036104,-500.0,0.00010958,2]
[333106064,1721871036113,-500.0,0.00010958,2]
[333106065,1721871036124,-316.75619687,0.00010958,2]
[333106066,1721871036135,-500.0,0.00010958,2]
[333106067,1721871036144,-502.37196201,0.00010958,2]
[333106068,1721871036157,-500.0,0.00010958,2]
[333106069,1721871036167,-500.0,0.00010958,2]
[333106070,1721871036178,-500.0,0.00010958,2]
[333106071,1721871036188,-637.56674489,0.00010958,2]
[333106072,1721871036198,-500.0,0.00010958,2]
[333106073,1721871036208,-500.0,0.00010958,2]
[333106074,1721871036218,-500.0,0.00010958,2]
[333106075,1721871036234,-500.0,0.00010958,2]
[333106076,1721871036244,-500.0,0.00010958,2]
[333106077,1721871036254,-500.0,0.00010958,2]
[333106078,1721871036264,-485.47641607,0.00010958,2]
[333106079,1721871036274,-500.0,0.00010958,2]
[333106080,1721871036283,-502.71645068,0.00010958,2]
[333106081,1721871036293,-500.0,0.00010958,2]
[333106082,1721871036302,-582.56,0.00010958,2]
[333106083,1721871036312,-500.0,0.00010958,2]
[333106084,1721871036322,-482.08948925,0.00010958,2]
[333106085,1721871036331,-500.0,0.00010958,2]
[333106086,1721871036341,-500.0,0.00010958,2]
[333106087,1721871036350,-500.0,0.00010958,2]
[333106088,1721871036361,-500.0,0.00010958,2]
[333106089,1721871036370,-500.0,0.00010958,2]
[333106090,1721871036380,-502.93953864,0.00010958,2]
[333106091,1721871036390,-500.0,0.00010958,2]
[333106092,1721871036400,-616.11112092,0.00010958,2]
[333106093,1721871036410,-402.09813637,0.00010958,2]
[333106094,1721871036419,-507.66530237,0.00010958,2]
[333106095,1721871036429,-500.0,0.00010958,2]
[333106096,1721871036439,-321.38693619,0.00010958,2]
[333106097,1721871036448,-500.0,0.00010958,2]
[333106098,1721871036458,-500.0,0.00010958,2]
[333106099,1721871036468,-571.27,0.00010958,2]
[333106100,1721871036484,-500.0,0.00010958,2]
[333106101,1721871036494,-500.0,0.00010958,2]
[333106102,1721871036504,-500.0,0.00010958,2]
[333106103,1721871036513,-500.0,0.00010958,2]
[333106104,1721871036524,-500.0,0.00010958,2]
[333106105,1721871036534,-500.0,0.00010958,2]
[333106106,1721871036543,-500.0,0.00010958,2]
[333106107,1721871036553,-500.0,0.00010958,2]
[333106108,1721871036563,-500.0,0.00010958,2]
[333106109,1721871036573,-500.0,0.00010958,2]
[333106110,1721871036583,-500.0,0.00010958,2]
[333106111,1721871036592,-500.0,0.00010958,2]
[333106112,1721871036602,-500.0,0.00010958,2]
[333106113,1721871036611,-500.0,0.00010958,2]
[333106114,1721871036621,-500.0,0.00010958,2]
[333106115,1721871036630,-500.0,0.00010958,2]
[333106116,1721871036640,-500.0,0.00010958,2]
[333106117,1721871036649,-500.0,0.00010958,2]
[333106118,1721871036659,-500.0,0.00010958,2]
[333106119,1721871036668,-500.0,0.00010958,2]
[333106120,1721871036678,-645.33,0.00010958,2]
[333106121,1721871036687,-500.0,0.00010958,2]
[333106122,1721871036697,-503.57659461,0.00010958,2]
[333106123,1721871036706,-500.0,0.00010958,2]
[333106124,1721871036716,-506.26523943,0.00010958,2]
[333106125,1721871036731,-500.0,0.00010958,2]
[333106126,1721871036741,-500.0,0.00010958,2]
[333106127,1721871036751,-500.0,0.00010958,2]
[333106128,1721871036760,-500.0,0.00010958,2]
[333106129,1721871036771,-500.0,0.00010958,2]
[333106130,1721871036781,-529.82467397,0.00010958,2]
[333106131,1721871036790,-500.0,0.00010958,2]
[333106132,1721871036800,-500.0,0.00010958,2]
[333106133,1721871036809,-501.30670709,0.00010958,2]
[333106134,1721871036819,-500.0,0.00010958,2]
[333106135,1721871036828,-500.0,0.00010958,2]
[333106136,1721871036838,-500.0,0.00010958,2]
[333106137,1721871036848,-500.0,0.00010958,2]
[333106138,1721871036857,-288.27,0.00010958,2]
[333106139,1721871036866,-500.0,0.00010958,2]
[333106140,1721871036876,-500.0,0.00010958,2]
[333106141,1721871036885,-500.0,0.00010958,2]
[333106142,1721871036895,-500.0,0.00010958,2]
[333106143,1721871036904,-500.0,0.00010958,2]
[333106144,1721871036913,-500.0,0.00010958,2]
[333106145,1721871036922,-512.81,0.00010958,2]
[333106146,1721871036931,-500.0,0.00010958,2]
[333106147,1721871036941,-500.0,0.00010958,2]
[333106148,1721871036950,-500.0,0.00010958,2]
[333106149,1721871036959,-500.0,0.00010958,2]
[333106150,1721871036969,-500.0,0.00010958,2]
[333106151,1721871036982,-500.0,0.00010958,2]
[333106152,1721871036992,-500.0,0.00010958,2]
[333106153,1721871037001,-500.0,0.00010958,2]
[333106154,1721871037010,-500.0,0.00010958,2]
[333106155,1721871037019,-500.0,0.00010958,2]
[333106156,1721871037028,-500.0,0.00010958,2]
[333106157,1721871037038,-506.88901934,0.00010958,2]
[333106158,1721871037047,-500.0,0.00010958,2]
[333106159,1721871037057,-500.0,0.00010958,2]
[333106160,1721871037066,-500.0,0.00010958,2]
[333106161,1721871037076,-500.0,0.00010958,2]
[333106162,1721871037085,-500.0,0.00010958,2]
[333106163,1721871037095,-510.19515636,0.00010958,2]
[333106164,1721871037105,-500.0,0.00010958,2]
[333106165,1721871037114,-507.2146483,0.00010958,2]
[333106166,1721871037124,-500.0,0.00010958,2]
[333106167,1721871037138,-500.0,0.00010958,2]
[333106168,1721871037147,-500.0,0.00010958,2]
[333106169,1721871037157,-503.64680592,0.00010958,2]
[333106170,1721871037166,-500.0,0.00010958,2]
[333106171,1721871037179,-641.75,0.00010958,2]
[333106172,1721871037190,-500.0,0.00010958,2]
[333106173,1721871037200,-500.0,0.00010958,2]
[333106174,1721871037210,-500.0,0.00010958,2]
[333106175,1721871037224,-500.0,0.00010958,2]
[333106176,1721871037236,-500.0,0.00010958,2]
[333106177,1721871037246,-500.0,0.00010958,2]
[333106178,1721871037256,-506.21764563,0.00010958,2]
[333106179,1721871037265,-500.0,0.00010958,2]
[333106180,1721871037276,-500.0,0.00010958,2]
[333106181,1721871037285,-500.0,0.00010958,2]
[333106182,1721871037295,-503.14224354,0.00010958,2]
[333106183,1721871037305,-500.0,0.00010958,2]
[333106184,1721871037315,-500.0,0.00010958,2]
[333106185,1721871037325,-500.0,0.00010958,2]
[333106186,1721871037335,-500.0,0.00010958,2]
[333106187,1721871037345,-507.29,0.00010958,2]
[333106188,1721871037354,-500.0,0.00010958,2]
[333106189,1721871037364,-500.0,0.00010958,2]
[333106190,1721871037374,-500.0,0.00010958,2]
[333106191,1721871037385,-504.55829998,0.00010958,2]
[333106192,1721871037395,-500.0,0.00010958,2]
[333106193,1721871037406,-500.0,0.00010958,2]
[333106194,1721871037417,-500.0,0.00010958,2]
[333106195,1721871037427,-500.0,0.00010958,2]
[333106196,1721871037439,-500.0,0.00010958,2]
[333106197,1721871037449,-500.0,0.00010958,2]
[333106198,1721871037460,-500.0,0.00010958,2]
[333106199,1721871037472,-500.0,0.00010958,2]
[333106200,1721871037486,-500.0,0.00010958,2]
[333106201,1721871037496,-562.86,0.00010958,2]
[333106202,1721871037506,-500.0,0.00010958,2]
[333106203,1721871037516,-500.0,0.00010958,2]
[333106204,1721871037526,-500.0,0.00010958,2]
[333106205,1721871037536,-502.41637917,0.00010958,2]
[333106206,1721871037546,-500.0,0.00010958,2]
[333106207,1721871037555,-500.0,0.00010958,2]
[333106208,1721871037565,-500.0,0.00010958,2]
[333106209,1721871037575,-503.27426548,0.00010958,2]
[333106210,1721871037584,-500.0,0.00010958,2]
[333106211,1721871037594,-500.0,0.00010958,2]
[333106212,1721871037603,-500.0,0.00010958,2]
[333106213,1721871037612,-500.0,0.00010958,2]
[333106214,1721871037623,-500.0,0.00010958,2]
[333106215,1721871037632,-356.94,0.00010958,2]
[333106216,1721871037642,-500.0,0.00010958,2]
[333106217,1721871037651,-500.0,0.00010958,2]
[333106218,1721871037661,-500.0,0.00010958,2]
[333106219,1721871037671,-508.68,0.00010958,2]
[333106220,1721871037681,-500.0,0.00010958,2]
[333106221,1721871037691,-509.9765705,0.00010958,2]
[333106222,1721871037701,-500.0,0.00010958,2]
[333106223,1721871037710,-500.0,0.00010958,2]
[333106224,1721871037720,-357.50680213,0.00010958,2]
[333106225,1721871037734,-505.90508722,0.00010958,2]
[333106226,1721871037744,-505.9821885,0.00010958,2]
[333106227,1721871037754,-645.10230217,0.00010958,2]
[333106228,1721871037764,-624.47235522,0.00010958,2]
[333106229,1721871037774,-500.0,0.00010958,2]
[333106230,1721871037783,-524.24,0.00010958,2]
[333106231,1721871037846,-500.0,0.00010958,2]
[333106232,1721871037857,-500.0,0.00010958,2]
[333106233,1721871037867,-612.89,0.00010958,2]
[333106234,1721871037876,-500.0,0.00010958,2]
[333106235,1721871037886,-500.0,0.00010958,2]
[333106236,1721871037895,-500.47970047,0.00010958,2]
[333106237,1721871037905,-604.72984471,0.00010958,2]
[333106238,1721871037914,-505.43559949,0.00010958,2]
[333106239,1721871037923,-500.0,0.00010958,2]
[333106240,1721871037933,-500.0,0.00010958,2]
[333106241,1721871037943,-500.0,0.00010958,2]
[333106242,1721871037952,-502.06043332,0.00010958,2]
[333106243,1721871037961,-500.0,0.00010958,2]
[333106244,1721871037970,-500.0,0.00010958,2]
[333106245,1721871037984,-502.07130866,0.00010958,2]
[333106246,1721871037993,-500.0,0.00010958,2]
[333106247,1721871038003,-502.85117507,0.00010958,2]
[333106248,1721871038012,-500.0,0.00010958,2]
[333106249,1721871038022,-625.73,0.00010958,2]
[333106250,1721871038031,-500.0,0.00010958,2]
[333106251,1721871038040,-507.56,0.00010958,2]
[333106252,1721871038049,-500.0,0.00010958,2]
[333106253,1721871038059,-500.0,0.00010958,2]
[333106254,1721871038068,-500.0,0.00010958,2]
[333106255,1721871038077,-500.0,0.00010958,2]
[333106256,1721871038087,-502.38667856,0.00010958,2]
[333106257,1721871038096,-500.0,0.00010958,2]
[333106259,1721871038105,-502.80619149,0.00010958,2]
[333106261,1721871038114,-502.67414922,0.00010958,2]
[333106263,1721871038123,-500.0,0.00010958,2]
[333106265,1721871038133,-500.0,0.00010958,2]
[333106267,1721871038142,-500.0,0.00010958,2]
[333106268,1721871038156,-500.0,0.00010958,2]
[333106270,1721871038165,-501.7947476,0.00010958,2]
[333106272,1721871038175,-500.0,0.00010958,2]
[333106274,1721871038184,-500.0,0.00010958,2]
[333106275,1721871038194,-500.0,0.00010958,2]
[333106276,1721871038203,-503.21535121,0.00010958,2]
[333106277,1721871038213,-500.0,0.00010958,2]
[333106278,1721871038228,-500.0,0.00010958,2]
[333106280,1721871038237,-500.0,0.00010958,2]
[333106282,1721871038246,-500.65453854,0.00010958,2]
[333106284,1721871038256,-508.28346953,0.00010958,2]
[333106286,1721871038265,-500.0,0.00010958,2]
[333106288,1721871038274,-500.0,0.00010958,2]
[333106290,1721871038284,-500.0,0.00010958,2]
[333106291,1721871038293,-500.0,0.00010958,2]
[333106293,1721871038302,-500.0,0.00010958,2]
[333106295,1721871038312,-500.0,0.00010958,2]
[333106296,1721871038321,-500.0,0.00010958,2]
[333106298,1721871038331,-500.0,0.00010958,2]
[333106299,1721871038340,-500.0,0.00010958,2]
[333106300,1721871038350,-513.59141351,0.00010958,2]
[333106301,1721871038359,-500.0,0.00010958,2]
[333106302,1721871038369,-500.0,0.00010958,2]
[333106303,1721871038378,-548.85007302,0.00010958,2]
[333106304,1721871038388,-500.0,0.00010958,2]
[333106305,1721871038397,-500.0,0.00010958,2]
[333106306,1721871038406,-500.0,0.00010958,2]
[333106307,1721871038415,-500.0,0.00010958,2]
[333106308,1721871038425,-500.0,0.00010958,2]
[333106309,1721871038434,-503.7018071,0.00010958,2]
[333106310,1721871038443,-500.0,0.00010958,2]
[333106311,1721871038452,-500.0,0.00010958,2]
[333106312,1721871038462,-500.0,0.00010958,2]
[333106313,1721871038475,-500.0,0.00010958,2]
[333106314,1721871038486,-500.0,0.00010958,2]
[333106315,1721871038495,-357.31937831,0.00010958,2]
[333106317,1721871038505,-503.97252276,0.00010958,2]
[333106319,1721871038514,-500.0,0.00010958,2]
[333106321,1721871038523,-709.82,0.00010958,2]
[333106323,1721871038532,-709.82,0.00010958,2]
[333106325,1721871038542,-500.70194738,0.00010958,2]
[333106326,1721871038551,-709.82,0.00010958,2]
[333106327,1721871038560,-500.0,0.00010958,2]
[333106328,1721871038569,-500.0,0.00010958,2]
[333106329,1721871038579,-500.0,0.00010958,2]
[333106330,1721871038588,-500.0,0.00010958,2]
[333106331,1721871038597,-500.70598447,0.00010958,2]
[333106332,1721871038606,-500.0,0.00010958,2]
[333106333,1721871038618,-500.0,0.00010958,2]
[333106334,1721871038627,-500.0,0.00010958,2]
[333106335,1721871038636,-500.0,0.00010958,2]
[333106336,1721871038645,-500.0,0.00010958,2]
[333106337,1721871038654,-554.69,0.00010958,2]
[333106338,1721871038663,-612.81,0.00010958,2]
[333106339,1721871038673,-500.0,0.00010958,2]
[333106340,1721871038682,-500.0,0.00010958,2]
[333106341,1721871038692,-500.0,0.00010958,2]
[333106342,1721871038701,-500.0,0.00010958,2]
[333106343,1721871038711,-500.0,0.00010958,2]
[333106344,1721871038720,-450.0,0.00010958,2]
[333106345,1721871038733,-500.95819391,0.00010958,2]
[333106346,1721871038743,-500.0,0.00010958,2]
[333106347,1721871038752,-501.79716356,0.00010958,2]
[333106348,1721871038761,-500.0,0.00010958,2]
[333106349,1721871038771,-500.0,0.00010958,2]
[333106350,1721871038780,-500.0,0.00010958,2]
[333106351,1721871038789,-500.0,0.00010958,2]
[333106352,1721871038798,-500.0,0.00010958,2]
[333106353,1721871038807,-500.0,0.00010958,2]
[333106354,1721871038816,-500.0,0.00010958,2]
[333106355,1721871038826,-500.0,0.00010958,2]
[333106356,1721871038836,-500.0,0.00010958,2]
[333106358,1721871038846,-500.0,0.00010958,2]
[333106360,1721871038855,-500.0,0.00010958,2]
[333106362,1721871038864,-611.75645374,0.00010958,2]
[333106364,1721871038873,-501.58778282,0.00010958,2]
[333106366,1721871038883,-500.0,0.00010958,2]
[333106368,1721871038895,-500.0,0.00010958,2]
[333106370,1721871038905,-221.11991239,0.00010958,2]